fUSD/lending_fUSD_20250414
["ID","MTS","AMOUNT","RATE_DAILY","PERIOD"]
[357970410,1744631442317,-500.0,0.00019178,2]
[357970411,1744631442326,-502.09320001,0.00019178,2]
[357970412,1744631442336,-500.0,0.00019178,2]
[357970413,1744631442346,-500.0,0.00019178,2]
[357970414,1744631442356,-500.0,0.00019178,2]
[357970415,1744631442366,-500.0,0.00019178,2]
[357970416,1744631442376,-513.395965,0.00019178,2]
[357970417,1744631442388,-380.35830251,0.00019178,2]
[357970418,1744631442398,-500.0,0.00019178,2]
[357970419,1744631442409,-500.0,0.00019178,2]
[357970420,1744631442419,-500.0,0.00019178,2]
[357970421,1744631442430,-511.4373419,0.00019178,2]
[357970422,1744631442440,-502.18362092,0.00019178,2]
[357970423,1744631442450,-576.24131014,0.00019178,2]
[357970424,1744631442460,-503.53533221,0.00019178,2]
[357970425,1744631442470,-500.0,0.00019178,2]
[357970426,1744631442480,-505.76951948,0.00019178,2]
[357970427,1744631442490,-500.0,0.00019178,2]
[357970428,1744631442501,-500.0,0.00019178,2]
[357970429,1744631442511,-504.36572827,0.00019178,2]
[357970430,1744631442521,-506.73964992,0.00019178,2]
[357970431,1744631442531,-500.0,0.00019178,2]
[357970432,1744631442540,-500.0,0.00019178,2]
[357970433,1744631442549,-507.41322393,0.00019178,2]
[357970434,1744631442559,-500.0,0.00019178,2]
[357970435,1744631442568,-503.51876802,0.00019178,2]
[357970436,1744631442578,-303.83257303,0.00019178,2]
[357970437,1744631442588,-500.0,0.00019178,2]
[357970438,1744631442597,-500.0,0.00019178,2]
[357970439,1744631442607,-500.0,0.00019178,2]
[357970440,1744631442616,-500.0,0.00019178,2]
[357970441,1744631442626,-500.0,0.00019178,2]
[357970442,1744631442637,-500.0,0.00019178,2]
[357970443,1744631442647,-500.0,0.00019178,2]
[357970444,1744631442658,-500.0,0.00019178,2]
[357970445,1744631442668,-500.0,0.00019178,2]
[357970446,1744631442678,-500.0,0.00019178,2]
[357970447,1744631442687,-500.0,0.00019178,2]
[357970448,1744631442697,-500.0,0.00019178,2]
[357970449,1744631442706,-500.0,0.00019178,2]
[357970450,1744631442717,-500.0,0.00019178,2]
[357970451,1744631442726,-500.0,0.00019178,2]
[357970452,1744631442736,-500.0,0.00019178,2]
[357970453,1744631442746,-500.0,0.00019178,2]
[357970454,1744631442756,-564.11142073,0.00019178,2]
[357970455,1744631442766,-500.0,0.00019178,2]
[357970456,1744631442776,-500.0,0.00019178,2]
[357970457,1744631442785,-607.62089549,0.00019178,2]
[357970458,1744631442795,-246.03,0.00019178,2]
[357970459,1744631442808,-500.0,0.00019178,2]
[357970460,1744631442818,-500.0,0.00019178,2]
[357970461,1744631442828,-500.0,0.00019178,2]
[357970462,1744631442838,-500.0,0.00019178,2]
[357970463,1744631442849,-523.30088731,0.00019178,2]
[357970464,1744631442859,-500.0,0.00019178,2]
[357970465,1744631442869,-500.0,0.00019178,2]
[357970466,1744631442880,-500.0,0.00019178,2]
[357970467,1744631442892,-500.0,0.00019178,2]
[357970468,1744631442904,-500.0,0.00019178,2]
[357970469,1744631442916,-500.0,0.00019178,2]
[357970470,1744631442928,-500.0,0.00019178,2]
[357970471,1744631442939,-500.0,0.00019178,2]
[357970472,1744631442950,-500.0,0.00019178,2]
[357970473,1744631442961,-550.98087176,0.00019178,2]
[357970474,1744631442971,-500.0,0.00019178,2]
[357970475,1744631442983,-500.0,0.00019178,2]
[357970476,1744631442996,-500.0,0.00019178,2]
[357970477,1744631443007,-500.0,0.00019178,2]
[357970478,1744631443018,-824.04,0.00019178,2]
[357970479,1744631443028,-500.0,0.00019178,2]
[357970480,1744631443037,-500.0,0.00019178,2]
[357970481,1744631443047,-500.0,0.00019178,2]
[357970482,1744631443057,-500.0,0.00019178,2]
[357970483,1744631443067,-500.0,0.00019178,2]
[357970484,1744631443077,-500.0,0.00019178,2]
[357970485,1744631443087,-500.0,0.00019178,2]
[357970486,1744631443096,-500.0,0.00019178,2]
[357970488,1744631443105,-500.0,0.00019178,2]
[357970490,1744631443115,-500.0,0.00019178,2]
[357970492,1744631443125,-500.0,0.00019178,2]
[357970493,1744631443134,-29790.49,0.00019178,2]
[357970494,1744631443143,-500.0,0.00019178,2]
[357970495,1744631443152,-500.0,0.00019178,2]
[357970496,1744631443162,-500.0,0.00019178,2]
[357970497,1744631443171,-500.0,0.00019178,2]
[357970498,1744631443180,-500.0,0.00019178,2]
[357970499,1744631443190,-500.0,0.00019178,2]
[357970500,1744631443200,-500.0,0.00019178,2]
[357970501,1744631443210,-541.45,0.00019178,2]
[357970503,1744631443219,-500.0,0.00019178,2]
[357970504,1744631443230,-500.0,0.00019178,2]
[357970505,1744631443241,-553.52918989,0.00019178,2]
[357970506,1744631443250,-500.0,0.00019178,2]
[357970507,1744631443259,-500.0,0.00019178,2]
[357970509,1744631443269,-500.0,0.00019178,2]
[357970511,1744631443278,-500.0,0.00019178,2]
[357970513,1744631443288,-500.0,0.00019178,2]
[357970515,1744631443297,-500.0,0.00019178,2]
[357970517,1744631443307,-662.89,0.00019178,2]
[357970519,1744631443316,-524.14,0.00019178,2]
[357970522,1744631443326,-500.0,0.00019178,2]
[357970524,1744631443334,-398.44948144,0.00019178,2]
[357970525,1744631443344,-500.0,0.00019178,2]
[357970526,1744631443354,-500.0,0.00019178,2]
[357970527,1744631443363,-500.0,0.00019178,2]
[357970528,1744631443372,-500.0,0.00019178,2]
[357970529,1744631443382,-3564.6,0.00019178,2]
[357970530,1744631443394,-500.0,0.00019178,2]
[357970531,1744631443403,-500.0,0.00019178,2]
[357970532,1744631443413,-500.0,0.00019178,2]
[357970533,1744631443423,-500.0,0.00019178,2]
[357970534,1744631443432,-627.07,0.00019178,2]
[357970535,1744631443443,-500.0,0.00019178,2]
[357970536,1744631443452,-619.36,0.00019178,2]
[357970537,1744631443462,-500.0,0.00019178,2]
[357970538,1744631443472,-500.0,0.00019178,2]
[357970539,1744631443482,-500.0,0.00019178,2]
[357970540,1744631443491,-500.0,0.00019178,2]
[357970541,1744631443501,-500.0,0.00019178,2]
[357970542,1744631443511,-500.0,0.00019178,2]
[357970543,1744631443521,-500.0,0.00019178,2]
[357970544,1744631443531,-500.0,0.00019178,2]
[357970545,1744631443540,-500.0,0.00019178,2]
[357970546,1744631443550,-500.0,0.00019178,2]
[357970547,1744631443560,-500.0,0.00019178,2]
[357970548,1744631443570,-500.0,0.00019178,2]
[357970549,1744631443579,-500.0,0.00019178,2]
[357970550,1744631443589,-500.0,0.00019178,2]
[357970551,1744631443598,-512.86312731,0.00019178,2]
[357970552,1744631443609,-1028.38,0.00019178,2]
[357970553,1744631443619,-500.0,0.00019178,2]
[357970554,1744631443628,-500.0,0.00019178,2]
[357970555,1744631443639,-500.0,0.00019178,2]
[357970556,1744631443649,-150.0,0.00019178,2]
[357970557,1744631443659,-500.0,0.00019178,2]
[357970558,1744631443668,-500.0,0.00019178,2]
[357970559,1744631443678,-500.0,0.00019178,2]
[357970560,1744631443688,-500.0,0.00019178,2]
[357970561,1744631443698,-500.0,0.00019178,2]
[357970562,1744631443708,-500.0,0.00019178,2]
[357970563,1744631443717,-172.93193658,0.00019178,2]
[357970564,1744631443727,-500.0,0.00019178,2]
[357970565,1744631443736,-500.0,0.00019178,2]
[357970566,1744631443746,-500.0,0.00019178,2]
[357970567,1744631443756,-500.0,0.00019178,2]
[357970568,1744631443765,-500.0,0.00019178,2]
[357970569,1744631443775,-500.0,0.00019178,2]
[357970570,1744631443784,-500.0,0.00019178,2]
[357970571,1744631443793,-500.0,0.00019178,2]
[357970572,1744631443806,-500.0,0.00019178,2]
[357970573,1744631443817,-500.0,0.00019178,2]
[357970574,1744631443827,-538.7290083,0.00019178,2]
[357970575,1744631443836,-500.0,0.00019178,2]
[357970576,1744631443847,-500.0,0.00019178,2]
[357970577,1744631443857,-500.0,0.00019178,2]
[357970578,1744631443866,-504.23171124,0.00019178,2]
[357970579,1744631443875,-500.0,0.00019178,2]
[357970580,1744631443886,-500.0,0.00019178,2]
[357970581,1744631443895,-500.0,0.00019178,2]
[357970582,1744631443905,-500.0,0.00019178,2]
[357970583,1744631443914,-677.94,0.00019178,2]
[357970591,1744631444092,-500.0,0.00019178,2]
[357970593,1744631444103,-603.03690998,0.00019178,2]
[357970595,1744631444114,-271.04821779,0.00019178,2]
[357970597,1744631444124,-500.0,0.00019178,2]
[357970599,1744631444134,-500.0,0.00019178,2]
[357970601,1744631444143,-504.1633221,0.00019178,2]
[357970602,1744631444152,-500.0,0.00019178,2]
[357970604,1744631444162,-500.0,0.00019178,2]
[357970605,1744631444171,-500.0,0.00019178,2]
[357970606,1744631444181,-500.0,0.00019178,2]
[357970607,1744631444190,-500.0,0.00019178,2]
[357970608,1744631444202,-500.0,0.00019178,2]
[357970609,1744631444212,-500.0,0.00019178,2]
[357970610,1744631444222,-500.0,0.00019178,2]
[357970611,1744631444232,-500.0,0.00019178,2]
[357970612,1744631444242,-313.03835211,0.00019178,2]
[357970613,1744631444254,-507.15322763,0.00019178,2]
[357970614,1744631444264,-500.0,0.00019178,2]
[357970615,1744631444273,-500.0,0.00019178,2]
[357970616,1744631444283,-500.0,0.00019178,2]
[357970617,1744631444293,-500.0,0.00019178,2]
[357970618,1744631444303,-588.21515634,0.00019178,2]
[357970619,1744631444313,-584.464357,0.00019178,2]
[357970620,1744631444323,-1405.71,0.00019178,2]
[357970621,1744631444333,-500.0,0.00019178,2]
[357970622,1744631444343,-500.0,0.00019178,2]
[357970623,1744631444352,-515.61811463,0.00019178,2]
[357970624,1744631444363,-182.57510806,0.00019178,2]
[357970625,1744631444372,-500.0,0.00019178,2]
[357970626,1744631444382,-500.0,0.00019178,2]
[357970627,1744631444392,-2000.0,0.00019178,2]
[357970628,1744631444401,-500.0,0.00019178,2]
[357970629,1744631444411,-500.0,0.00019178,2]
[357970630,1744631444420,-500.0,0.00019178,2]
[357970631,1744631444430,-500.0,0.00019178,2]
[357970632,1744631444440,-500.0,0.00019178,2]
[357970633,1744631444450,-500.0,0.00019178,2]
[357970634,1744631444460,-500.0,0.00019178,2]
[357970635,1744631444469,-500.0,0.00019178,2]
[357970636,1744631444479,-500.0,0.00019178,2]
[357970637,1744631444489,-369.32654153,0.00019178,2]
[357970638,1744631444500,-500.0,0.00019178,2]
[357970639,1744631444510,-500.0,0.00019178,2]
[357970640,1744631444521,-500.0,0.00019178,2]
[357970641,1744631444531,-500.0,0.00019178,2]
[357970642,1744631444541,-500.0,0.00019178,2]
[357970643,1744631444551,-500.0,0.00019178,2]
[357970644,1744631444561,-500.0,0.00019178,2]
[357970645,1744631444570,-500.0,0.00019178,2]
[357970646,1744631444580,-1452.88,0.00019178,2]
[357970647,1744631444589,-500.0,0.00019178,2]
[357970648,1744631444599,-500.0,0.00019178,2]
[357970649,1744631444609,-500.0,0.00019178,2]
[357970650,1744631444619,-500.0,0.00019178,2]
[357970651,1744631444628,-500.0,0.00019178,2]
[357970652,1744631444638,-535.19663594,0.00019178,2]
[357970653,1744631444648,-500.0,0.00019178,2]
[357970654,1744631444658,-500.0,0.00019178,2]
[357970655,1744631444668,-500.0,0.00019178,2]
[357970656,1744631444677,-500.0,0.00019178,2]
[357970657,1744631444687,-500.0,0.00019178,2]
[357970658,1744631444697,-500.0,0.00019178,2]
[357970659,1744631444707,-500.0,0.00019178,2]
[357970660,1744631444717,-500.0,0.00019178,2]
[357970661,1744631444726,-525.19032362,0.00019178,2]
[357970662,1744631444736,-566.47,0.00019178,2]
[357970663,1744631444746,-500.0,0.00019178,2]
[357970664,1744631444755,-500.0,0.00019178,2]
[357970665,1744631444765,-500.0,0.00019178,2]
[357970666,1744631444775,-574.83773874,0.00019178,2]
[357970667,1744631444785,-546.70121778,0.00019178,2]
[357970668,1744631444794,-500.0,0.00019178,2]
[357970669,1744631444805,-500.0,0.00019178,2]
[357970670,1744631444817,-500.0,0.00019178,2]
[357970671,1744631444827,-500.0,0.00019178,2]
[357970672,1744631444837,-500.0,0.00019178,2]
[357970673,1744631444847,-500.0,0.00019178,2]
[357970674,1744631444857,-526.12857703,0.00019178,2]
[357970675,1744631444867,-500.0,0.00019178,2]
[357970676,1744631444876,-500.0,0.00019178,2]
[357970677,1744631444887,-500.3464815,0.00019178,2]
[357970678,1744631444896,-500.0,0.00019178,2]
[357970679,1744631444903,-150.0,0.00019178,2]
[357970680,1744631444912,-502.52705317,0.00019178,2]
[357970681,1744631444920,-514.98488608,0.00019178,2]
[357970682,1744631444927,-500.0,0.00019178,2]
[357970683,1744631444936,-500.0,0.00019178,2]
[357970684,1744631444945,-619.27083389,0.00019178,2]
[357970685,1744631444954,-500.0,0.00019178,2]
[357970686,1744631444964,-151.0,0.00019178,2]
[357970687,1744631444974,-500.0,0.00019178,2]
[357970688,1744631444984,-500.0,0.00019178,2]
[357970689,1744631444993,-1000.0,0.00019178,2]
[357970690,1744631445002,-302.03546072,0.00019178,2]
[357970691,1744631445011,-500.0,0.00019178,2]
[357970692,1744631445022,-500.0,0.00019178,2]
[357970693,1744631445031,-626.89706412,0.00019178,2]
[357970694,1744631445041,-500.0,0.00019178,2]
[357970695,1744631445050,-500.0,0.00019178,2]
[357970696,1744631445059,-503.83442561,0.00019178,2]
[357970697,1744631445070,-500.0,0.00019178,2]
[357970698,1744631445079,-200.0,0.00019233,2]
[357970699,1744631445089,-168.65,0.0001924,2]
[357970700,1744631445098,-400.22761646,0.00019261,2]
[357970701,1744631445108,-1927.66712303,0.00019352,2]
[357970702,1744631445117,-400.22761646,0.00019352,2]
[357970703,1744631445127,-207.98,0.00019368,2]
[357970704,1744631445136,-1927.66712298,0.00019413,2]
[357970705,1744631445146,-400.22761646,0.00019443,2]
[357970706,1744631445155,-500.0,0.00019451,2]
[357970707,1744631445164,-500.0,0.00019451,2]
[357970708,1744631445174,-500.0,0.00019451,2]
[357970709,1744631445183,-500.0,0.00019451,2]
[357970710,1744631445192,-500.0,0.00019451,2]
[357970711,1744631445202,-259.05700476,0.00019452,2]
[357970712,1744631445211,-500.0,0.00019452,2]
[357970713,1744631445221,-500.0,0.00019452,2]
[357970714,1744631445231,-500.0,0.00019452,2]
[357970715,1744631445240,-500.0,0.00019452,2]
[357970716,1744631445249,-500.0,0.00019452,2]
[357970717,1744631445258,-500.0,0.00019452,2]
[357970718,1744631445267,-500.0,0.00019452,2]
[357970719,1744631445276,-500.0,0.00019452,2]
[357970720,1744631445285,-500.0,0.00019452,2]
[357970721,1744631445294,-500.0,0.00019452,2]
[357970722,1744631445304,-559.74,0.00019452,2]
[357970723,1744631445314,-500.0,0.00019452,2]
[357970724,1744631445323,-500.0,0.00019452,2]
[357970725,1744631445333,-500.0,0.00019452,2]
[357970726,1744631445344,-500.0,0.00019452,2]
[357970727,1744631445353,-500.0,0.00019452,2]
[357970728,1744631445364,-500.0,0.00019452,2]
[357970729,1744631445374,-467.53266097,0.00019452,2]
[357970730,1744631445383,-500.0,0.00019452,2]
[357970731,1744631445394,-500.0,0.00019452,2]
[357970732,1744631445404,-161.02,0.00019452,2]
[357970733,1744631445414,-500.0,0.00019452,2]
[357970734,1744631445424,-500.0,0.00019452,2]
[357970735,1744631445435,-500.0,0.00019452,2]
[357970736,1744631445444,-500.0,0.00019452,2]
[357970737,1744631445454,-500.0,0.00019452,2]
[357970738,1744631445464,-649.46,0.00019452,2]
[357970739,1744631445474,-153.13706151,0.00019452,2]
[357970740,1744631445484,-500.0,0.00019452,2]
[357970741,1744631445493,-500.0,0.00019452,2]
[357970742,1744631445503,-206.31,0.00019452,2]
[357970743,1744631445513,-500.0,0.00019452,2]
[357970744,1744631445523,-500.0,0.00019452,2]
[357970745,1744631445533,-640.7,0.00019452,2]
[357970746,1744631445543,-192.18,0.00019452,2]
[357970747,1744631445554,-500.0,0.00019452,2]
[357970748,1744631445563,-500.0,0.00019452,2]
[357970749,1744631445573,-510.45,0.00019452,2]
[357970750,1744631445583,-500.0,0.00019452,2]
[357970751,1744631445592,-500.0,0.00019452,2]
[357970752,1744631445602,-500.0,0.00019452,2]
[357970753,1744631445612,-500.0,0.00019452,2]
[357970754,1744631445621,-300.85,0.00019452,2]
[357970755,1744631445633,-500.0,0.00019452,2]
[357970756,1744631445644,-500.0,0.00019452,2]
[357970757,1744631445654,-500.0,0.00019452,2]
[357970758,1744631445664,-500.0,0.00019452,2]
[357970759,1744631445674,-500.0,0.00019452,2]
[357970760,1744631445684,-500.0,0.00019452,2]
[357970761,1744631445694,-500.0,0.00019452,2]
[357970762,1744631445704,-608.95956989,0.00019452,2]
[357970763,1744631445714,-493.68,0.00019452,2]
[357970764,1744631445724,-879.22,0.00019452,2]
[357970765,1744631445735,-754.08,0.00019452,2]
[357970766,1744631445745,-500.0,0.00019452,2]
[357970767,1744631445755,-500.0,0.00019452,2]
[357970768,1744631445765,-500.0,0.00019452,2]
[357970769,1744631445775,-500.0,0.00019452,2]
[357970770,1744631445785,-500.0,0.00019452,2]
[357970771,1744631445795,-500.0,0.00019452,2]
[357970772,1744631445807,-500.0,0.00019452,2]
[357970773,1744631445819,-500.0,0.00019452,2]
[357970774,1744631445829,-450.43,0.00019452,2]
[357970775,1744631445838,-500.0,0.00019452,2]
[357970776,1744631445850,-500.0,0.00019452,2]
[357970777,1744631445860,-551.73,0.00019452,2]
[357970778,1744631445870,-262.58,0.00019452,2]
[357970779,1744631445880,-500.0,0.00019452,2]
[357970780,1744631445893,-601.37,0.00019452,2]
[357970781,1744631445904,-241.15,0.00019452,2]
[357970782,1744631445914,-500.0,0.00019452,2]
[357970783,1744631445924,-401.2,0.00019452,2]
[357970784,1744631445934,-496.45,0.00019452,2]
[357970785,1744631445944,-176.89006173,0.00019452,2]
[357970786,1744631445954,-500.0,0.00019452,2]
[357970787,1744631445964,-500.0,0.00019452,2]
[357970788,1744631445974,-525.58,0.00019452,2]
[357970789,1744631445984,-500.0,0.00019452,2]
[357970790,1744631445994,-500.0,0.00019452,2]
[357970791,1744631446004,-500.0,0.00019452,2]
[357970792,1744631446014,-306.40127736,0.00019452,2]
[357970793,1744631446024,-500.0,0.00019452,2]
[357970794,1744631446034,-160.84,0.00019452,2]
[357970795,1744631446044,-500.0,0.00019452,2]
[357970796,1744631446054,-500.0,0.00019452,2]
[357970797,1744631446064,-500.0,0.00019452,2]
[357970798,1744631446074,-500.0,0.00019452,2]
[357970799,1744631446084,-182.99443251,0.00019452,2]
[357970804,1744631446306,-317.00556749,0.00019452,2]
[357970805,1744631446317,-500.0,0.00019452,2]
[357970806,1744631446327,-500.0,0.00019452,2]
[357970807,1744631446337,-500.0,0.00019452,2]
[357970808,1744631446347,-500.0,0.00019452,2]
[357970809,1744631446356,-824.04,0.00019452,2]
[357970810,1744631446366,-500.0,0.00019452,2]
[357970811,1744631446377,-500.0,0.00019452,2]
[357970812,1744631446387,-29790.49,0.00019452,2]
[357970813,1744631446398,-349.65,0.00019452,2]
[357970814,1744631446407,-500.0,0.00019452,2]
[357970815,1744631446417,-500.0,0.00019452,2]
[357970816,1744631446426,-500.0,0.00019452,2]
[357970817,1744631446436,-226.97,0.00019452,2]
[357970818,1744631446445,-500.0,0.00019452,2]
[357970819,1744631446455,-500.0,0.00019452,2]
[357970820,1744631446464,-500.0,0.00019452,2]
[357970821,1744631446473,-662.89,0.00019452,2]
[357970822,1744631446483,-500.0,0.00019452,2]
[357970823,1744631446493,-3564.6,0.00019452,2]
[357970824,1744631446503,-248.01431448,0.00019452,2]
[357970825,1744631446512,-203.08,0.00019452,2]
[357970826,1744631446522,-500.0,0.00019452,2]
[357970827,1744631446531,-325.11774081,0.00019452,2]
[357970828,1744631446541,-424.45,0.00019452,2]
[357970829,1744631446550,-500.0,0.00019452,2]
[357970830,1744631446560,-500.0,0.00019452,2]
[357970831,1744631446570,-500.0,0.00019452,2]
[357970832,1744631446580,-500.0,0.00019452,2]
[357970833,1744631446589,-500.0,0.00019452,2]
[357970834,1744631446599,-500.0,0.00019452,2]
[357970835,1744631446609,-1028.38,0.00019452,2]
[357970836,1744631446618,-622.38005136,0.00019452,2]
[357970837,1744631446628,-500.0,0.00019452,2]
[357970838,1744631446638,-500.0,0.00019452,2]
[357970839,1744631446648,-500.0,0.00019452,2]
[357970840,1744631446658,-500.0,0.00019452,2]
[357970841,1744631446668,-500.0,0.00019452,2]
[357970842,1744631446679,-200.48967401,0.00019452,2]
[357970843,1744631446691,-299.51032599,0.00019452,2]
[357970845,1744631446701,-500.0,0.00019452,2]
[357970847,1744631446710,-500.0,0.00019452,2]
[357970849,1744631446720,-500.0,0.00019452,2]
[357970851,1744631446730,-354.20225919,0.00019452,2]
[357970853,1744631446739,-504.07741286,0.00019452,2]
[357970874,1744631447046,-500.0,0.00019178,2]
[357970875,1744631447057,-173.86258714,0.00019452,2]
[357970876,1744631447067,-500.0,0.00019452,2]
[357970877,1744631447076,-440.40168611,0.00019452,2]
[357970878,1744631447086,-500.0,0.00019452,2]
[357970879,1744631447097,-179.39370182,0.00019452,2]
[357970880,1744631447108,-500.0,0.00019452,2]
[357970881,1744631447118,-500.0,0.00019452,2]
[357970882,1744631447128,-370.04999995,0.00019452,2]
[357970883,1744631447138,-230.86549309,0.00019452,2]
[357970884,1744631447148,-1405.71,0.00019452,2]
[357970885,1744631447157,-500.0,0.00019452,2]
[357970886,1744631447167,-568.08947205,0.00019452,2]
[357970887,1744631447177,-500.0,0.00019452,2]
[357970888,1744631447186,-500.0,0.00019452,2]
[357970889,1744631447196,-500.0,0.00019452,2]
[357970890,1744631447206,-500.0,0.00019452,2]
[357970891,1744631447216,-500.0,0.00019452,2]
[357970892,1744631447379,-500.0,0.00019452,2]
[357970893,1744631447391,-500.0,0.00019452,2]
[357970894,1744631447401,-500.0,0.00019452,2]
[357970895,1744631447411,-1452.88,0.00019452,2]
[357970896,1744631447421,-500.0,0.00019452,2]
[357970897,1744631447431,-500.0,0.00019452,2]
[357970898,1744631447441,-500.0,0.00019452,2]
[357970899,1744631447451,-177.72573017,0.00019452,2]
[357970900,1744631447460,-566.47,0.00019452,2]
[357970901,1744631447470,-565.29805731,0.00019452,2]
[357970902,1744631447479,-500.0,0.00019452,2]
[357970903,1744631447489,-500.0,0.00019452,2]
[357970904,1744631447499,-500.0,0.00019452,2]
[357970905,1744631447510,-500.0,0.00019452,2]
[357970906,1744631447519,-500.0,0.00019452,2]
[357970907,1744631447529,-500.0,0.00019452,2]
[357970908,1744631447539,-1000.0,0.00019452,2]
[357970909,1744631447549,-500.0,0.00019452,2]
[357970910,1744631447558,-500.0,0.00019452,2]
[357970911,1744631447567,-1927.66712298,0.00019474,2]
[357970912,1744631447577,-1927.66712298,0.00019535,2]
[357970913,1744631447587,-400.22761646,0.00019535,2]
[357970914,1744631447596,-370.48724767,0.00019571,2]
[357970915,1744631447606,-1927.66712298,0.00019596,2]
[357970916,1744631447616,-400.22761646,0.00019626,2]
[357970917,1744631447625,-1927.66712298,0.00019656,2]
[357970918,1744631447635,-287.67095863,0.0001969,2]
[357970919,1744631447646,-1000.0,0.000197,2]
[357970920,1744631447656,-400.22761646,0.00019717,2]
[357970921,1744631447666,-1927.66712298,0.00019717,2]
[357970922,1744631447675,-500.0,0.00019726,2]
[357970923,1744631447684,-624.38426017,0.00019726,2]
[357970924,1744631447694,-500.0,0.00019726,2]
[357970925,1744631447704,-194.75,0.00019726,2]
[357970926,1744631447714,-560.50304149,0.00019726,2]
[357970927,1744631447723,-500.0,0.00019726,2]
[357970928,1744631447733,-500.0,0.00019726,2]
[357970929,1744631447743,-500.0,0.00019726,2]
[357970930,1744631447752,-199.85,0.00019726,2]
[357970931,1744631447761,-500.0,0.00019726,2]
[357970932,1744631447771,-500.0,0.00019726,2]
[357970933,1744631447781,-500.0,0.00019726,2]
[357970934,1744631447791,-171.62,0.00019726,2]
[357970935,1744631447802,-500.0,0.00019726,2]
[357970936,1744631447815,-500.0,0.00019726,2]
[357970937,1744631447825,-247.15,0.00019726,2]
[357970938,1744631447835,-584.4586956,0.00019726,2]
[357970939,1744631447846,-459.29611256,0.00019726,2]
[357970940,1744631447856,-500.0,0.00019726,2]
[357970941,1744631447865,-879.22,0.00019726,2]
[357970942,1744631447875,-754.08,0.00019726,2]
[357970943,1744631447886,-500.0,0.00019726,2]
[357970944,1744631447898,-500.0,0.00019726,2]
[357970945,1744631447908,-405.99,0.00019726,2]
[357970946,1744631447918,-500.0,0.00019726,2]
[357970947,1744631447928,-500.0,0.00019726,2]
[357970948,1744631447938,-527.88,0.00019726,2]
[357970949,1744631447948,-500.0,0.00019726,2]
[357970950,1744631447958,-500.0,0.00019726,2]
[357970951,1744631447968,-500.0,0.00019726,2]
[357970952,1744631447978,-500.0,0.00019726,2]
[357970953,1744631447988,-525.58,0.00019726,2]
[357970954,1744631447998,-500.0,0.00019726,2]
[357970955,1744631448007,-500.0,0.00019726,2]
[357970956,1744631448018,-500.0,0.00019726,2]
[357970957,1744631448028,-500.0,0.00019726,2]
[357970958,1744631448038,-537.89,0.00019726,2]
[357970959,1744631448049,-156.80770081,0.00019726,2]
[357970960,1744631448059,-545.78,0.00019726,2]
[357970961,1744631448071,-263.72,0.00019726,2]
[357970962,1744631448087,-560.49,0.00019726,2]
[357970963,1744631448109,-824.04,0.00019726,2]
[357970964,1744631448126,-500.0,0.00019726,2]